[Event "7th Porticcio Open 2022"]
[Site "Porticcio"]
[Date "2022.07.02"]
[Round "1.7"]
[White "Clarke, Brandon G I"]
[Black "Bonelli Maestracci, Pierre Joseph"]
[Result "1/2-1/2"]
[ECO "B27"]
[WhiteElo "2486"]
[BlackElo "1801"]
[Annotator "TA"]
[PlyCount "134"]
[EventDate "2022.07.02"]
[EventType "swiss"]
[EventCountry "FRA"]
[SourceTitle "playchess.com"]
[Source "ChessBase"]
[SourceQuality "1"]
[TimeControl "5400+30"]

{[%evp 14,134,18,18,17,16,16,16,16,14,7,14,29,29,66,58,74,81,81,62,95,88,87,69,77,59,79,69,66,58,71,53,51,51,60,6,72,64,67,17,25,11,70,24,16,29,68,66,78,60,53,0,0,0,0,0,0,0,0,0,0,0,0,0,0,-7,0,0,0,-65,0,-4,0,0,0,0,0,0,0,0,0,0,0,0,0,0,0,0,0,0,0,0,0,0,0,0,0,0,0,0,0,0,0,0,0,0,0,0,0,-14,0,0,0,-8,0,0,0,0,0,-14,0,-14,0]} 1. e4 {[%emt 0:00:03]} c5 {[%emt 0:00:06]} 2. Nf3 {[%emt 0:00:11]} g6 {[%emt 0:00:08]} 3. d4 {[%emt 0:00:44]} cxd4 {[%emt 0:00:05]} 4. Qxd4 {[%emt 0:01:55]} Nf6 {[%emt 0:00:11]} 5. Nc3 {[%emt 0:00:07]} Nc6 {[%emt 0:00:35]} 6. Qa4 {[%emt 0:00:03]} d6 {[%emt 0:00:41]} 7. e5 {[%emt 0:00:16]} dxe5 {[%emt 0:01:08]} 8. Nxe5 {[%emt 0:00:03] With the idea Bc4.} Bg7 {[%emt 0:04:59] B27: Sicilian: 2 Nf3, unusual Black 2nd moves.} 9. Bb5 {[%emt 0:02:15]} O-O {[%emt 0:02:10]} 10. Nxc6 {[%emt 0:01:17]} bxc6 {[%emt 0:00:04]} 11. Bxc6 {[%emt 0:00:10]} Bd7 {[%emt 0:00:28]} 12. O-O {[%emt 0:02:04]} Bxc6 {[%emt 0:02:24]} 13. Qxc6 {[%emt 0:00:42] [#]} Ng4 $146 {[%emt 0:03:37]} ({Predecessor:} 13... Rb8 14. Rb1 Qc8 15. Qa4 Ng4 16. Bf4 Rb7 17. h3 Ne5 18. Nd5 Rd8 19. Rfd1 Nc4 20. Nxe7+ Rxe7 21. Rxd8+ Qxd8 22. Qxc4 {1-0 (32) Harsha,B (2547)-Sychev,K (2537) Chess.com INT 2022}) 14. Qe4 {[%emt 0:14:52]} h5 {[%emt 0:10:09]} 15. h3 {[%emt 0:09:04]} Nf6 {[%emt 0:03:15]} 16. Qf3 {[%emt 0:01:32] White is more active.} Qb6 {[%emt 0:05:43]} 17. Re1 {[%emt 0:02:25]} e6 {[%emt 0:01:13]} 18. b3 {[%emt 0:01:03]} Nd5 {[%emt 0:04:35]} 19. Nxd5 {[%emt 0:06:40]} exd5 {[%emt 0:00:13]} 20. c3 {[%emt 0:00:46]} Qa5 {[%emt 0:10:36]} 21. Bb2 {[%emt 0:02:15]} Rac8 {[%emt 0:01:05][%cal Rg7c3]} 22. Red1 {[%emt 0:07:19]} Rfd8 {[%emt 0:02:07][%cal Rg7c3]} 23. Rd3 {[%emt 0:00:23]} Rc6 {[%emt 0:08:15]} 24. Qf4 {[%emt 0:14:45]} ({White should try} 24. Re3 $14) 24... Rdc8 {[%emt 0:05:19]} (24... Bxc3 $2 25. Rxc3 Rxc3 26. Qd4 $18) (24... Re8 $11) 25. b4 {[%emt 0:10:30]} Qb5 {[%emt 0:01:32]} 26. Rad1 {[%emt 0:00:26]} (26. Qf3 $1 $14) 26... d4 $11 {[%emt 0:03:44]} 27. cxd4 {[%emt 0:10:10]} Qxb4 {[%emt 0:01:14]} (27... Rc2 $1 $11 28. Ba3 Re8) 28. Ba3 {[%emt 0:02:46]} (28. Bc1 $14) 28... Qa4 {[%emt 0:00:28]} 29. Qf3 {[%emt 0:01:13]} Rc3 {[%emt 0:02:20] [#] And now ...Qxa3 would win.} 30. Bc5 {[%emt 0:01:25]} ({But not} 30. Rxc3 Rxc3 31. Qxc3 Qxd1+ 32. Kh2 Qxd4 33. Qxd4 Bxd4 $11) 30... Rxd3 {[%emt 0:01:33]} 31. Rxd3 {[%emt 0:00:08]} ({Of course not} 31. Qxd3 Qxa2 32. Qd2 Qa4 $11) 31... Qxa2 {[%emt 0:00:42]} 32. Kh2 {[%emt 0:03:38]} ({Better is} 32. Ra3 $1 $14 Qb1+ 33. Kh2) 32... a5 {[%emt 0:05:46]} 33. Ra3 {[%emt 0:03:28]} Qd2 {[%emt 0:02:21]} 34. Rd3 {[%emt 0:00:22]} Qa2 {[%emt 0:00:06]} 35. Rb3 {[%emt 0:02:07]} a4 {[%emt 0:02:03]} 36. Rb7 {[%emt 0:00:02]} Qe6 {[%emt 0:02:50]} 37. g3 {[%emt 0:00:39]} Rd8 {[%emt 0:01:27]} 38. Rb4 {[%emt 0:01:06]} Qa6 {[%emt 0:04:34]} 39. d5 {[%emt 0:00:24]} a3 {[%emt 0:01:31] [#] aiming for ...a2.} 40. Rb6 {[%emt 0:00:32]} Qc4 {[%emt 0:00:30][%csl LRc5,LRd5]} 41. Qxa3 {[%emt 0:00:36]} (41. Bxa3 $11 Qxd5 42. Qxd5 Rxd5 43. Rb8+ Kh7 44. Rb7) 41... Qxd5 {[%emt 0:01:10]} ({Black should play} 41... h4 $1 $15 42. Bd6 Bd4) 42. h4 {[%emt 0:00:26] The position is equal.} Bd4 {[%emt 0:00:52]} (42... Be5 {keeps more tension.} 43. Rb1 Rc8 44. Rc1 Rb8) 43. Bxd4 {[%emt 0:00:10]} Qxd4 {[%emt 0:00:07][%mdl 4096] Endgame KQR-KQR} 44. Rb2 {[%emt 0:00:14]} Kg7 {[%emt 0:00:30]} 45. Re2 {[%emt 0:00:09]} Qf6 {[%emt 0:01:06]} 46. Qb3 {[%emt 0:01:22]} Rd6 {[%emt 0:00:40]} 47. Kg2 {[%emt 0:00:39]} Rb6 {[%emt 0:00:16]} 48. Qd1 {[%emt 0:00:24]} Qc6+ {[%emt 0:00:38]} 49. Kh2 {[%emt 0:00:06]} Qf6 {[%emt 0:00:13]} 50. Qe1 {[%emt 0:00:24]} Rb2 {[%emt 0:00:22]} 51. Rxb2 {[%emt 0:00:37]} Qxb2 {[%emt 0:00:03] KQ-KQ} 52. Kg1 {[%emt 0:00:36]} Qd4 {[%emt 0:00:12]} 53. Qe2 $1 {[%emt 0:00:16]} Qa1+ {[%emt 0:00:26]} 54. Kg2 {[%emt 0:00:11]} Qf6 {[%emt 0:00:27]} 55. Qe4 {[%emt 0:00:14]} Qc3 {[%emt 0:00:15]} 56. Qf3 {[%emt 0:01:19]} Qd4 {[%emt 0:00:27]} 57. Qc6 {[%emt 0:00:39]} Qf6 {[%emt 0:00:48]} 58. Qf3 {[%emt 0:00:22]} Qd4 {[%emt 0:00:12]} 59. Qe2 {[%emt 0:00:41]} Qf6 {[%emt 0:00:08]} 60. f4 {[%emt 0:00:17]} Qd4 {[%emt 0:00:51]} 61. Kh2 {[%emt 0:00:45]} Qf6 {[%emt 0:00:08]} 62. Qe4 {[%emt 0:00:19]} Qb2+ {[%emt 0:00:15]} 63. Kh3 {[%emt 0:00:08]} Qf6 {[%emt 0:00:25]} 64. Kg2 {[%emt 0:01:09]} Qb2+ {[%emt 0:00:05]} 65. Kf3 {[%emt 0:00:28]} Qc3+ {[%emt 0:00:07]} 66. Kg2 {[%emt 0:00:34]} Qb2+ {[%emt 0:00:04]} 67. Kf3 {[%emt 0:00:06]} Qc3+ {[%emt 0:00:03] Weighted Error Value: White=0.09 (flawless) /Black=0.10 (very precise)} 1/2-1/2

[Event "7th Porticcio Open 2022"]
[Site "Porticcio"]
[Date "2022.07.02"]
[Round "1.8"]
[White "Iasman, Inna"]
[Black "Karttunen, Mika"]
[Result "0-1"]
[ECO "D38"]
[WhiteElo "1792"]
[BlackElo "2484"]
[Annotator "TA"]
[PlyCount "56"]
[EventDate "2022.07.02"]
[EventType "swiss"]
[EventCountry "FRA"]
[SourceTitle "playchess.com"]
[Source "ChessBase"]
[SourceQuality "1"]
[TimeControl "5400+30"]

{[%evp 10,56,14,-5,0,-21,-7,-36,-18,-24,-25,-58,-58,-58,-63,-51,-54,-62,-70,-55,-53,-74,-69,-95,-69,-108,-118,-120,-112,-102,-105,-106,-33,-47,-47,-47,-50,-56,-56,-41,-52,-123,-132,-470,-469,-687,-680,-617,-370]} 1. d4 {[%emt 0:00:10]} Nf6 {[%emt 0:00:06]} 2. c4 {[%emt 0:00:11]} e6 {[%emt 0:00:08]} 3. Nf3 {[%emt 0:00:24]} d5 {[%emt 0:00:08]} 4. Nc3 {[%emt 0:00:47]} Bb4 {[%emt 0:00:08]} 5. Qa4+ {[%emt 0:02:34]} Nc6 {[%emt 0:00:13]} 6. Ne5 {[%emt 0:01:09]} a5 {[%emt 0:13:10] D38: Queen's Gambit Declined: Ragozin Defence (4 Nf3 Bb4).} 7. Bg5 {[%emt 0:06:25]} O-O {[%emt 0:03:00]} 8. e3 {[%emt 0:03:36]} Nxe5 {[%emt 0:08:29] Black is slightly better.} 9. dxe5 {[%emt 0:03:56]} Qd7 {[%emt 0:00:08]} 10. Qxd7 {[%emt 0:05:31]} Nxd7 {[%emt 0:00:20][%cal Bf6d7,Bd7b6,Bb6d5][%mdl 32] [#]} 11. f4 $146 {[%emt 0:01:19]} ({Predecessor:} 11. Bf4 Nc5 12. Be2 dxc4 13. Bxc4 Na4 14. O-O-O Bxc3 15. bxc3 b5 16. Bb3 Nxc3 17. Rd2 {0-1 (27) Schiff,A-Hoppe,A freechess.de 2021}) 11... Nb6 {[%emt 0:06:55]} 12. cxd5 {[%emt 0:01:38]} Nxd5 {[%emt 0:02:10]} 13. Kd2 {[%emt 0:02:47]} f6 {[%emt 0:05:18]} 14. exf6 {[%emt 0:01:36]} gxf6 {[%emt 0:00:04]} 15. Bh4 {[%emt 0:00:18]} Rd8 {[%emt 0:00:36] [#] ...Nxc3+ is the strong threat.} 16. Bd3 {[%emt 0:00:30]} e5 {[%emt 0:14:41][%cal Od5f4]} 17. fxe5 {[%emt 0:03:28]} Nxc3 {[%emt 0:00:47]} 18. bxc3 {[%emt 0:00:34]} Bf5 $1 {[%emt 0:00:05]} 19. cxb4 {[%emt 0:01:00]} Rxd3+ {[%emt 0:00:09]} 20. Ke2 {[%emt 0:00:30]} fxe5 {[%emt 0:01:41]} (20... axb4 $17 {Strongly threatening ...Rda3.} 21. Rhf1 (21. exf6 Rda3 $19) 21... Bg6 22. Bxf6 (22. Rxf6 $2 Rda3 $19) 22... Rda3) 21. b5 {[%emt 0:05:36][%cal Og2g4]} Rd7 $36 {[%emt 0:07:05][%mdl 2048] Black has good play.} 22. a4 {[%emt 0:03:34]} Bd3+ {[%emt 0:00:58]} 23. Ke1 {[%emt 0:04:35]} c5 {[%emt 0:04:30]} 24. bxc6 {[%emt 0:03:34]} bxc6 {[%emt 0:00:04]} 25. Rc1 {[%emt 0:01:08] [#]} ({White should play} 25. Kf2 $15) 25... Rb8 $1 $17 {[%emt 0:00:21] Black is more active.} 26. Bf6 $2 {[%emt 0:02:52][%mdl 8192]} (26. Rd1 $17 {is a better chance.}) 26... Rb2 $19 {[%emt 0:01:27] Black is clearly winning.} 27. Rd1 {[%emt 0:05:51]} (27. Bxe5 $142 Re2+ 28. Kd1 Ba6+ 29. Bd4 Rxe3 30. Rxc6 Rxd4+ 31. Kc1) 27... Rxg2 {[%emt 0:01:07]} 28. Bxe5 {[%emt 0:01:03]} Re2+ {[%emt 0:00:17] Weighted Error Value: White=0.43/Black=0.05 (flawless)} 0-1

[Event "7th Porticcio Open 2022"]
[Site "Porticcio"]
[Date "2022.07.03"]
[Round "2.2"]
[White "Mastrovasilis, Athanasios"]
[Black "Houhou, Alexandre"]
[Result "1/2-1/2"]
[ECO "D70"]
[WhiteElo "2527"]
[BlackElo "2185"]
[Annotator "TA"]
[PlyCount "148"]
[EventDate "2022.07.02"]
[EventType "swiss"]
[EventCountry "FRA"]
[SourceTitle "playchess.com"]
[Source "ChessBase"]
[SourceQuality "1"]
[TimeControl "5400+30"]

{[%evp 9,148,0,0,0,0,0,0,0,0,-35,8,8,18,20,34,37,46,45,64,68,76,68,72,64,85,77,78,59,56,56,56,55,55,55,55,55,55,55,55,55,56,47,58,40,41,37,38,29,32,11,13,11,51,0,0,0,0,0,0,0,0,0,0,0,0,0,0,0,8,8,8,0,8,0,8,0,8,0,8,0,0,0,0,0,0,0,0,0,0,0,0,0,0,0,0,0,0,0,0,0,0,0,0,0,0,0,0,0,0,0,0,0,0,0,0,0,0,0,0,0,0,0,0,0,0,0,0,0,0,0,0,0,0,0,0,0,0,0,0,0,0]} 1. d4 {[%emt 0:04:55]} d5 {[%emt 0:00:23]} 2. Nf3 {[%emt 0:00:38]} Nf6 {[%emt 0:00:20]} 3. c4 {[%emt 0:00:24]} c6 {[%emt 0:00:02]} 4. Nbd2 {[%emt 0:00:22]} Bf5 {[%emt 0:00:35]} 5. Nh4 {[%emt 0:00:12]} Be4 {[%emt 0:00:15]} 6. Qb3 {[%emt 0:01:17] D11: Slav Defence: 3 Nf3 sidelines and 3...Nf6 4 e3 Bg4.} Qc7 {[%emt 0:04:22]} 7. f3 {[%emt 0:00:38]} Bg6 {[%emt 0:00:21]} 8. cxd5 {[%emt 0:01:00]} cxd5 {[%emt 0:02:36]} 9. e4 {[%emt 0:00:30][%cal Be2e4,Be4e5][%mdl 32]} e6 {[%emt 0:12:39] [#]} 10. Nxg6 $146 {[%emt 0:05:25]} ({Predecessor:} 10. Bb5+ Nc6 11. exd5 Nxd5 12. Nc4 Bb4+ 13. Bd2 Bxd2+ 14. Nxd2 O-O 15. Bxc6 Qxc6 16. Nxg6 hxg6 {0-1 (62) Dilanyan,G (2292)-Petrosyan,T (2441) Yerevan 2015}) 10... hxg6 {[%emt 0:00:18]} 11. e5 $1 {[%emt 0:00:08]} Nfd7 {[%emt 0:03:48] [#] Threatens to win with ...Nc6.} 12. f4 $1 {[%emt 0:01:46]} Nc6 {[%emt 0:00:20]} 13. Nf3 {[%emt 0:00:30]} Nb4 {[%emt 0:14:39] White must now prevent ...Nc2+.} 14. Kf2 {[%emt 0:15:49]} Rc8 {[%emt 0:00:24]} 15. Bd2 {[%emt 0:01:14]} Qb6 {[%emt 0:03:55]} 16. Be2 {[%emt 0:03:42]} Be7 {[%emt 0:01:43]} 17. Rac1 {[%emt 0:01:48]} O-O {[%emt 0:00:10]} 18. h4 {[%emt 0:05:02]} Rxc1 {[%emt 0:05:27]} 19. Rxc1 {[%emt 0:00:37]} Nc6 {[%emt 0:00:18]} 20. Qxb6 {[%emt 0:05:47]} Nxb6 {[%emt 0:00:40]} 21. g4 {[%emt 0:06:34]} Rc8 {[%emt 0:08:08]} 22. a3 {[%emt 0:03:29]} Bd8 {[%emt 0:03:05]} 23. Bd3 {[%emt 0:01:05]} Ne7 {[%emt 0:06:38]} 24. Rxc8 {[%emt 0:03:33]} Nbxc8 {[%emt 0:00:48]} 25. Ke3 {[%emt 0:01:05]} a6 {[%emt 0:04:46]} 26. a4 {[%emt 0:03:25]} Kf8 {[%emt 0:03:07]} 27. Bc2 {[%emt 0:04:51]} Na7 {[%emt 0:03:52]} 28. Bb4 {[%emt 0:01:29]} Ke8 {[%emt 0:00:04]} 29. Bc5 {[%emt 0:02:02]} Nac6 {[%emt 0:01:48]} 30. b3 {[%emt 0:03:04]} Kd7 {[%emt 0:01:02]} 31. Ne1 {[%emt 0:01:25]} ({Better is} 31. b4 $14) 31... Ng8 $11 {[%emt 0:02:34] The position is equal.} 32. Bf8 {[%emt 0:03:48]} Bxh4 {[%emt 0:07:17]} 33. Nf3 {[%emt 0:00:07]} Bd8 {[%emt 0:00:24]} 34. Bxg7 {[%emt 0:00:09]} Nge7 {[%emt 0:00:20] Prevents f5.} 35. Bf8 {[%emt 0:02:05]} Bb6 {[%emt 0:00:39][%cal Oc6d4]} 36. Kd3 {[%emt 0:04:09]} Nb4+ {[%emt 0:01:18]} 37. Kc3 {[%emt 0:00:39]} Nxc2 {[%emt 0:00:55]} 38. Kxc2 {[%emt 0:00:08]} Ke8 {[%emt 0:00:29]} 39. Bxe7 {[%emt 0:02:41]} Kxe7 {[%emt 0:00:02][%mdl 4096] Endgame KB-KN} 40. Kc3 {[%emt 0:00:10]} Kd7 {[%emt 0:03:33]} 41. Ng5 {[%emt 0:02:21]} Ke8 {[%emt 0:00:21]} 42. Nh3 {[%emt 0:00:06]} Kd7 {[%emt 0:03:21]} 43. Nf2 {[%emt 0:01:38]} Bd8 {[%emt 0:01:04]} 44. Nd3 {[%emt 0:01:17]} a5 {[%emt 0:00:35]} 45. Kd2 {[%emt 0:00:28]} Be7 {[%emt 0:00:34]} 46. Ke3 {[%emt 0:00:08]} Bf8 {[%emt 0:00:50]} 47. Kf3 {[%emt 0:00:26]} Be7 {[%emt 0:00:44]} 48. Nc1 {[%emt 0:01:30]} Ba3 {[%emt 0:01:27]} 49. Ne2 {[%emt 0:00:20]} Bb4 {[%emt 0:00:23]} 50. Ke3 {[%emt 0:01:22]} Ke7 {[%emt 0:00:29]} 51. f5 {[%emt 0:01:29]} gxf5 {[%emt 0:00:58]} 52. gxf5 {[%emt 0:00:03]} Kd7 {[%emt 0:00:20]} 53. f6 {[%emt 0:01:25]} Ke8 {[%emt 0:00:44]} 54. Nc1 {[%emt 0:00:24]} Kf8 {[%emt 0:00:40]} 55. Nd3 {[%emt 0:00:26]} Ba3 {[%emt 0:00:38]} 56. Kd2 {[%emt 0:00:49]} Ke8 {[%emt 0:00:16]} 57. Kc3 {[%emt 0:02:36]} Kd7 {[%emt 0:00:18]} 58. b4 {[%emt 0:01:09]} axb4+ {[%emt 0:00:44]} 59. Nxb4 {[%emt 0:01:26]} Kc7 {[%emt 0:00:42]} 60. a5 {[%emt 0:01:24]} Bc1 {[%emt 0:00:29]} 61. Nd3 {[%emt 0:00:12]} Be3 {[%emt 0:00:29]} 62. Nc5 {[%emt 0:00:18]} Kc6 {[%emt 0:00:24]} 63. Na4 {[%emt 0:01:19]} Bf2 {[%emt 0:00:41] [#] aiming for ...Be1+.} 64. Nc5 $1 {[%emt 0:00:55][%cal Oc5e6] Strongly threatening Nxe6!} Be3 {[%emt 0:00:02]} 65. Kd3 {[%emt 0:00:25]} Bh6 {[%emt 0:00:25] Hoping for ...Bf8.} 66. a6 $1 {[%emt 0:01:06]} bxa6 {[%emt 0:00:08]} 67. Nxa6 {[%emt 0:00:02]} Bf8 {[%emt 0:00:12] ( -> ...Kb6)} 68. Kc3 {[%emt 0:00:14]} Kb7 {[%emt 0:01:29]} 69. Nb4 {[%emt 0:00:16]} Bxb4+ {[%emt 0:00:40]} 70. Kxb4 {[%emt 0:00:02]} Kb6 {[%emt 0:00:04]} 71. Ka4 $1 {[%emt 0:00:14]} Ka6 {[%emt 0:00:06]} 72. Kb4 {[%emt 0:00:04] White wants to mate with Kc5.} Kb6 {[%emt 0:00:07]} 73. Ka4 $1 {[%emt 0:00:07]} Ka6 {[%emt 0:00:04]} 74. Kb4 {[%emt 0:00:02] Kc5 would kill now.} Kb6 {[%emt 0:00:04] Weighted Error Value: White=0.05 (flawless) /Black=0.04 (flawless)} 1/2-1/2

[Event "7th Porticcio Open 2022"]
[Site "Porticcio"]
[Date "2022.07.03"]
[Round "2.3"]
[White "Bhawoodien, Mohamed Ozayr"]
[Black "Peng, Li Min"]
[Result "1-0"]
[ECO "C04"]
[WhiteElo "2182"]
[BlackElo "2516"]
[Annotator "TA"]
[PlyCount "89"]
[EventDate "2022.07.02"]
[EventType "swiss"]
[EventCountry "FRA"]
[SourceTitle "playchess.com"]
[Source "ChessBase"]
[SourceQuality "1"]
[TimeControl "5400+30"]

{[%evp 13,89,41,50,35,54,42,74,55,85,85,176,181,231,212,245,243,264,273,268,261,229,219,222,191,190,158,216,188,226,236,313,208,263,218,235,212,371,252,292,122,143,142,320,295,270,305,317,298,304,308,292,313,293,229,222,225,211,224,199,171,342,331,326,310,550,541,581,566,591,583,702,678,29989,977,891,863,750,750]} 1. e4 {[%emt 0:00:11]} e6 {[%emt 0:03:16]} 2. d4 {[%emt 0:00:15]} d5 {[%emt 0:00:05]} 3. Nd2 {[%emt 0:00:22]} Nc6 {[%emt 0:00:32]} 4. Ngf3 {[%emt 0:00:10]} Nf6 {[%emt 0:00:05]} 5. e5 {[%emt 0:00:10]} Nd7 {[%emt 0:00:02]} 6. Nb3 {[%emt 0:00:08]} a5 {[%emt 0:00:05]} 7. a4 {[%emt 0:00:14]} Be7 {[%emt 0:00:04]} 8. c3 {[%emt 0:00:10] C04: French Tarrasch: 3...Nc6.} b6 {[%emt 0:00:14]} 9. h4 {[%emt 0:00:16]} Ncb8 {[%emt 0:01:18] [#]} 10. Rh3 $146 {[%emt 0:03:47] White is better.} ({Predecessor:} 10. Ng5 c5 11. Qf3 Bxg5 12. hxg5 Qe7 13. Bd2 Ba6 14. Bxa6 Nxa6 15. Qe2 Nc7 16. Nc1 {0-1 (47) Van Foreest,M (2187)-Berndt,M (2065) Groningen 2019}) 10... c5 {[%emt 0:00:13]} 11. Rg3 {[%emt 0:04:26] White is more active.} Bf8 {[%emt 0:07:11]} ({Don't play} 11... c4 12. Nbd2 $14) (11... cxd4 $16 12. Nbxd4 Kf8) 12. Ng5 $1 $18 {[%emt 0:05:01][%cal Og5e6] Nxe6! is the strong threat.} Qe7 {[%emt 0:00:02]} (12... h6 {keeps fighting.}) 13. Rf3 {[%emt 0:10:28]} f6 {[%emt 0:00:33]} 14. exf6 {[%emt 0:00:37]} gxf6 {[%emt 0:05:31] [#]} 15. Nxe6 $1 {[%emt 0:10:04][%mdl 512]} Qxe6+ {[%emt 0:00:10]} 16. Re3 {[%emt 0:00:06]} Ne5 {[%emt 0:00:02]} 17. dxe5 {[%emt 0:04:13]} f5 {[%emt 0:00:02]} 18. Qh5+ {[%emt 0:04:29]} Kd8 {[%emt 0:08:12]} 19. Bb5 $36 {[%emt 0:03:05][%mdl 2048] White is really pushing.} Ra7 {[%emt 0:02:52]} (19... Kc7 $16 20. Kf1 Bg7) 20. Re2 {[%emt 0:02:38] Hoping for Bg5+.} Rf7 {[%emt 0:01:46]} 21. Bg5+ {[%emt 0:05:42]} Kc7 {[%emt 0:00:01]} 22. Nd2 {[%emt 0:04:26]} Rg8 {[%emt 0:00:52]} 23. g3 {[%emt 0:03:57]} Nc6 {[%emt 0:11:53]} 24. O-O-O {[%emt 0:01:33][%cal Od2c4] aiming for Nc4!} h6 $2 {[%emt 0:01:03]} (24... Na7 25. Bf4 Kb7) 25. Bf6 {[%emt 0:04:22] Black must now prevent Nf1.} Rg4 {[%emt 0:04:19] [#]} 26. Ree1 {[%emt 0:05:32]} (26. Nc4 $1 $18 {[%mdl 512]} Rxc4 27. Bxc4 dxc4 28. Rd6 $1 {[%mdl 512]}) 26... Bd7 {[%emt 0:00:55]} 27. f3 {[%emt 0:02:29][%cal Bf2f3,Bf3f4][%mdl 32]} Rxg3 {[%emt 0:01:41] [#] A mistake that costs the game.} (27... Rg8 $16 28. Nf1 d4) 28. Nf1 $1 {[%emt 0:00:08][%cal Bd2f1,Bf1e3,Be3c2,Bc2a3,Ba3c4][%mdl 32]} Rg1 {[%emt 0:00:02]} 29. Ne3 {[%emt 0:03:17][%csl LRd5,LRg1]} Rxe1 {[%emt 0:00:39]} 30. Rxe1 {[%emt 0:00:06]} Kb7 {[%emt 0:08:46]} 31. f4 {[%emt 0:02:43]} Rxf6 {[%emt 0:01:56]} 32. exf6 {[%emt 0:00:24]} d4 {[%emt 0:00:03]} 33. Nc2 {[%emt 0:00:33]} Qxf6 {[%emt 0:00:42]} 34. Qf3 {[%emt 0:02:15]} Kc7 {[%emt 0:01:32] [#]} 35. h5 {[%emt 0:03:43]} Bd6 {[%emt 0:00:11]} 36. Na3 {[%emt 0:00:35] Threatens to win with Nc4.} dxc3 $2 {[%emt 0:00:09]} (36... Qh4 37. Rf1 Qe7) 37. bxc3 {[%emt 0:00:23]} Qh4 {[%emt 0:06:02]} 38. Rf1 {[%emt 0:00:05]} Bf8 $2 {[%emt 0:10:21]} (38... Qg4 {was necessary.} 39. Nc4 Qxf3 40. Rxf3 Be8 41. Nxd6 Kxd6) 39. Nc4 {[%emt 0:02:35]} Bg7 {[%emt 0:00:40]} 40. Qd3 {[%emt 0:02:02] White threatens Qd6+ and mate.} Qe7 {[%emt 0:03:00] Prevents Qd6+.} 41. Rd1 {[%emt 0:00:46]} Be8 {[%emt 0:00:01]} 42. Ne3 {[%emt 0:00:47] Threatening mate with Nd5+.} Qe4 {[%emt 0:00:25]} 43. Qxe4 {[%emt 0:01:05]} (43. Qd6+ $142 Kb7 44. Nd5 Qxd5 45. Rxd5 Bxc3 46. Qf8 Nb8 47. Qxe8 Bb2+ 48. Kxb2) 43... fxe4 {[%emt 0:00:01]} 44. Nd5+ {[%emt 0:00:25]} Kb7 {[%emt 0:00:07]} 45. Rg1 {[%emt 0:00:18] Weighted Error Value: White=0.17 (very precise) /Black=0.70} 1-0